bitfinex-derivatives/quotes_ETHF0:USTF0_20241004
["timestamp","ask_amount","ask_price","bid_price","bid_amount"]
[1728024815944,3.87363763,2379.1,2379.0,1.79217605]
[1728024816259,3.87363763,2379.1,2379.0,2.89449603]
[1728024816453,3.87363763,2379.1,2379.0,2.89483084]
[1728024817246,3.87363763,2379.1,2379.0,1.52266998]
[1728024817453,3.87363763,2379.1,2379.0,2.89491764]
[1728024817852,3.87363763,2379.1,2379.0,1.52266998]
[1728024818348,2.2244,2379.1,2379.0,1.52266998]
[1728024819553,2.2244,2379.1,2379.0,2.89510709]
[1728024821347,2.2244,2379.1,2379.0,2.89516354]
[1728024822051,2.2244,2379.1,2379.0,1.52266998]
[1728024822052,4.42517121,2379.1,2379.0,1.52266998]
[1728024825553,4.42517121,2379.1,2379.0,0.42035]
[1728024825748,4.42517121,2379.1,2379.0,1.52266998]
[1728024825948,4.42517121,2379.1,2379.0,0.42035]
[1728024826351,8.62837121,2379.1,2379.0,0.42035]
[1728024829057,8.62837121,2379.1,2379.0,1.52266998]
[1728024831057,4.42517121,2379.1,2379.0,1.52266998]
[1728024831257,4.42517121,2379.1,2379.0,0.42035]
[1728024842065,2.60517121,2379.1,2379.0,0.42035]
[1728024842262,4.42517121,2379.1,2379.0,0.42035]
[1728024844965,4.42517121,2379.1,2378.9,1.10231998]
[1728024845157,1.65282377,2379.0,2378.9,1.10231998]
[1728024845462,1.65282377,2379.0,2378.9,2.47508145]
[1728024847859,1.65282377,2379.0,2378.9,1.10231998]
[1728024848368,2.07792377,2379.0,2378.9,2.47518178]
[1728024848873,2.07792377,2379.0,2378.9,1.10231998]
[1728024850167,0.4251,2379.0,2378.9,1.10231998]
[1728024850361,0.4251,2379.0,2378.9,1.52269998]
[1728024851166,0.4251,2379.0,2378.9,1.10231998]
[1728024851468,3.47339833,2379.0,2378.9,2.89571469]
[1728024852058,1.65339833,2379.0,2378.9,5.99659471]
[1728024852263,1.65339833,2379.0,2378.9,7.64658575]
[1728024852771,3.47339833,2379.0,2378.9,3.44338575]
[1728024853573,3.47339833,2379.0,2378.9,3.02300575]
[1728024854164,1.82,2379.0,2378.9,3.02300575]
[1728024854472,1.82,2379.0,2378.9,2.47582133]
[1728024854669,2.2194,2379.0,2378.9,2.47582133]
[1728024854965,4.80697121,2379.0,2378.9,1.10280662]
[1728024856262,2.6062,2379.0,2378.8,0.84659]
[1728024857163,2.6062,2379.0,2378.9,0.42038]
[1728024857861,4.81146206,2379.0,2378.9,1.52334026]
[1728024858270,2.6062,2379.0,2378.9,1.52334026]
[1728024859970,2.6062,2379.0,2378.9,1.10296026]
[1728024860775,12.8094,2379.0,2378.9,1.10296026]
[1728024861474,16.0172,2379.0,2378.9,1.10296026]
[1728024861670,16.43756,2379.0,2378.9,1.10296026]
[1728024863071,16.43756,2379.0,2378.6,0.42043]
[1728024863270,4.02467329,2378.7,2378.6,0.42043]
[1728024863777,4.42027329,2378.7,2378.6,0.42043]
[1728024864171,4.81147329,2378.7,2378.6,0.42043]
[1728024864476,4.81147329,2378.7,2378.5,0.42044]
[1728024864477,9.01547329,2378.7,2378.5,0.42044]
[1728024864677,0.3972,2378.6,2378.5,0.42044]
[1728024865579,2.04961033,2378.6,2378.5,0.42044]
[1728024865877,2.04960376,2378.6,2378.5,0.42044]
[1728024866280,0.3972,2378.6,2378.5,0.42044]
[1728024866577,2.04923299,2378.6,2378.5,0.42044]
[1728024868279,2.04923299,2378.6,2378.4,0.82555]
[1728024868481,1.82,2378.5,2378.4,0.82555]
[1728024869779,1.82,2378.5,2378.4,0.4051]
[1728024874470,2.04763299,2378.7,2378.4,0.4051]
[1728024874677,1.82,2378.5,2378.4,0.82557]
[1728024878586,1.82,2378.5,2378.4,0.4051]
[1728024878777,1.82,2378.5,2378.3,1.51586026]
[1728024878975,2.2425,2378.4,2378.3,1.10296026]
[1728024879280,2.2425,2378.4,2378.2,4.87468964]
[1728024879479,2.2425,2378.4,2378.2,3.77172938]
[1728024879890,2.2425,2378.4,2378.2,4.72676026]
[1728024880189,2.2425,2378.4,2378.2,0.416]
[1728024880488,0.3976,2378.3,2378.2,0.416]
[1728024888603,2.2176,2378.3,2378.2,0.416]
[1728024891199,2.2176,2378.3,2378.2,0.8365]
[1728024891200,1.82,2378.3,2378.2,0.8365]
[1728024894106,1.82,2378.3,2378.2,0.416]
[1728024894507,1.82,2378.3,2378.2,0.8365]
[1728024895007,1.82,2378.3,2378.2,0.416]
[1728024896112,1.82,2378.3,2378.2,0.8365]
[1728024896306,1.82,2378.3,2378.2,0.416]
[1728024896511,1.82,2378.3,2378.2,0.8365]
[1728024896706,1.82,2378.3,2378.2,0.416]
[1728024897120,1.82,2378.3,2378.2,1.51896026]
[1728024897306,1.82,2378.3,2378.2,1.93946026]
[1728024897605,1.82,2378.3,2378.2,1.51896026]
[1728024898616,1.82,2378.3,2378.2,2.89004538]
[1728024898806,1.82,2378.3,2378.2,2.89006014]
[1728024899006,1.82,2378.3,2378.2,1.51896026]
[1728024899508,1.82,2378.3,2378.2,3.44147578]
[1728024899910,1.82,2378.3,2378.2,1.78703538]
[1728024900313,1.82,2378.3,2378.2,3.44147578]
[1728024900511,0.4225,2378.4,2378.2,3.44147578]
[1728024900818,0.4225,2378.4,2378.3,2.47348511]
[1728024901015,0.4225,2378.4,2378.3,1.10170969]
[1728024901714,0.4225,2378.4,2378.3,2.47387138]
[1728024902913,2.2425,2378.4,2378.3,1.37237501]
[1728024903119,2.2425,2378.4,2378.3,2.47460306]
[1728024903705,2.2425,2378.4,2378.3,1.10222805]
[1728024904615,2.2425,2378.4,2378.3,2.47483388]
[1728024904810,2.2425,2378.4,2378.3,1.10222805]
[1728024905319,2.2425,2378.4,2378.3,2.47483473]
[1728024906114,3.89453299,2378.4,2378.3,2.47483473]
[1728024906618,3.89453299,2378.4,2378.3,2.89531473]
[1728024906807,2.2425,2378.4,2378.3,3.02704708]
[1728024907218,3.89453299,2378.4,2378.3,2.47518411]
[1728024907626,3.89453299,2378.4,2378.3,3.027602]
[1728024912413,3.89453299,2378.4,2378.3,3.02780162]
[1728024912819,3.89453299,2378.4,2378.3,2.47630696]
[1728024917029,3.89453299,2378.4,2378.3,3.02780162]
[1728024917232,3.89453299,2378.4,2378.3,2.47636197]
[1728024918135,3.89453299,2378.4,2378.3,2.47636977]
[1728024919139,2.2425,2378.4,2378.3,2.47636977]
[1728024919331,3.89576329,2378.4,2378.3,3.02780162]
[1728024919832,3.89576329,2378.4,2378.3,3.02791193]
[1728024920432,2.2425,2378.4,2378.3,2.47651854]
[1728024920639,4.86764329,2378.4,2378.3,1.10304701]
[1728024920829,4.86764329,2378.4,2378.2,1.10304701]
[1728024921029,0.4216,2378.3,2378.2,1.10304701]
[1728024921231,0.4216,2378.3,2378.2,2.47662582]
[1728024922332,0.4216,2378.3,2378.2,2.47667736]
[1728024922531,0.4216,2378.3,2378.2,3.02807075]
[1728024922939,0.4216,2378.3,2378.2,2.47684515]
[1728024923236,0.4216,2378.3,2378.2,1.37363035]
[1728024923437,0.4216,2378.3,2378.2,3.02807075]
[1728024923630,0.4216,2378.3,2378.2,1.37363035]
[1728024924033,0.4216,2378.3,2378.2,3.02807075]
[1728024926236,0.4216,2378.3,2378.2,3.44857075]
[1728024927034,0.4216,2378.3,2378.2,3.4488113]
[1728024927439,2.62627329,2378.3,2378.2,2.89773268]
[1728024928937,0.4216,2378.3,2378.2,3.4488113]
[1728024929239,2.62627329,2378.3,2378.2,2.89768954]
[1728024930142,2.62627329,2378.3,2378.2,2.47718954]
[1728024930736,0.4216,2378.3,2378.2,2.47718954]
[1728024931336,2.62627329,2378.3,2378.2,2.47718954]
[1728024931538,0.4216,2378.3,2378.2,2.47718954]
[1728024932034,0.4216,2378.3,2378.2,3.0282216]
[1728024932442,0.4216,2378.3,2378.2,2.47706852]
[1728024933036,0.4216,2378.3,2378.2,3.0282216]
[1728024933340,0.4216,2378.3,2378.2,2.47707227]
[1728024934345,0.4216,2378.3,2378.2,3.0282216]
[1728024934544,2.07526551,2378.3,2378.2,3.0282216]
[1728024935635,0.4216,2378.3,2378.2,3.0282216]
[1728024936146,2.62627329,2378.3,2378.2,2.47710161]
[1728024936637,0.4216,2378.3,2378.2,1.3737812]
[1728024937041,0.4216,2378.3,2378.2,1.37378015]
[1728024937233,0.4216,2378.3,2378.2,2.47706995]
[1728024937437,0.4216,2378.3,2378.2,2.47707036]
[1728024938240,0.4216,2378.3,2378.2,2.89757036]
[1728024942049,0.4216,2378.3,2378.2,2.89743836]
[1728024942545,2.62627329,2378.3,2378.2,1.52379021]
[1728024945349,2.62627329,2378.3,2378.2,1.10329021]
[1728024949544,0.8233,2378.3,2378.2,2.47694952]
[1728024950655,0.8233,2378.3,2378.2,2.47684289]
[1728024950856,0.8233,2378.3,2378.2,2.47685239]
[1728024951059,0.8233,2378.3,2378.2,1.10319308]
[1728024951246,0.8233,2378.3,2378.2,2.47684357]
[1728024952182,7.78394161,2378.3,2378.1,1.10319222]
[1728024952354,2.24051,2378.2,2378.0,1.10319222]
[1728024952557,2.20440457,2378.1,2377.9,1.52374222]
[1728024952754,3.47302354,2378.0,2377.9,1.52374222]
[1728024952957,3.47302354,2378.0,2377.9,2.89728385]
[1728024955051,3.47302354,2378.0,2377.9,1.52374222]
[1728024955254,3.47302354,2378.0,2377.9,2.89693685]
[1728024955456,3.47302354,2378.0,2377.9,1.52374222]
[1728024955851,3.89132354,2378.0,2377.9,1.52374222]
[1728024956564,3.89132354,2378.0,2377.9,1.10319222]
[1728024956754,4.28062354,2378.0,2377.9,1.10319222]
[1728024957460,8.48622354,2378.0,2377.9,1.10319222]
[1728024958561,8.48622354,2378.0,2377.8,1.10319222]
[1728024958562,6.8332,2378.0,2377.8,1.10319222]
[1728024958781,6.8332,2378.0,2377.5,6.37472164]
[1728024958782,6.96144161,2377.9,2377.4,3.86036093]
[1728024958949,8.6276,2378.0,2377.1,2.4869404]
[1728024958950,5.41026867,2377.5,2377.1,2.4869404]
[1728024959147,1.82,2377.2,2377.1,2.9076304]
[1728024959352,1.82,2377.2,2377.1,4.28109564]
[1728024959550,1.82,2377.2,2377.1,1.25319]
[1728024960653,2.49260833,2377.4,2377.3,0.42066]
[1728024960958,2.6609,2377.4,2377.3,0.42066]
[1728024961354,2.6609,2377.4,2377.1,0.8325]
[1728024961555,1.82,2377.2,2377.1,1.2532]
[1728024964161,1.82,2377.2,2377.1,5.4596]
[1728024965952,1.82,2377.2,2377.1,1.2532]
[1728024969668,1.82,2377.2,2377.1,0.8379]
[1728024971259,1.82,2377.2,2377.1,0.4172]
[1728024971561,1.82,2377.2,2376.9,3.35635161]
[1728024971562,1.82,2377.2,2376.9,3.62853]
[1728024971768,1.82,2377.0,2376.9,3.62853]
[1728024972264,6.0272,2377.0,2376.7,0.42076]
[1728024972457,3.62851,2377.1,2376.7,0.42076]
[1728024972458,1.82,2376.8,2376.7,0.42076]
[1728024972661,1.82,2376.8,2376.6,0.42077]
[1728024972872,1.82,2376.7,2376.5,0.8102]
[1728024973160,1.82,2376.7,2376.2,0.14369194]
[1728024973356,1.82,2376.3,2376.1,1.23776]
[1728024973557,1.82,2376.3,2376.2,0.42086]
[1728024977463,1.82,2376.3,2375.9,0.14729884]
[1728024977667,1.82,2376.0,2375.9,0.42091]
[1728024977867,1.82,2376.0,2375.8,0.42092]
[1728024978070,2.2281,2375.9,2375.8,0.42092]
[1728024979677,1.82,2375.9,2375.8,0.42092]
[1728024979969,0.407,2376.3,2375.7,0.4106]
[1728024980272,1.82,2376.3,2375.9,1.05228]
[1728024980471,1.918,2376.6,2376.2,1.05215]
[1728024980666,1.82,2376.7,2376.6,0.42079]
[1728024981569,0.7945,2377.0,2376.6,0.42079]
[1728024981570,3.94,2376.8,2376.6,0.42079]
[1728024981771,3.94,2376.8,2376.5,0.4156]
[1728024982178,3.94,2376.8,2376.6,0.42077]
[1728024982380,3.94,2376.8,2376.6,0.42078]
[1728024982776,3.94,2376.8,2376.5,0.4156]
[1728024982977,3.94,2376.8,2376.6,0.42077]
[1728024983879,3.94,2376.8,2376.5,0.4156]
[1728024983880,3.94,2376.8,2376.7,0.42077]
[1728024984176,3.94,2376.8,2376.6,0.42077]
[1728024984578,3.94,2376.8,2376.7,0.42077]
[1728024986568,4.7345,2377.0,2376.5,0.4156]
[1728024986964,4.7345,2377.0,2376.7,0.42076]
[1728024987171,4.7345,2377.0,2376.5,0.4156]
[1728024987380,3.94,2376.8,2376.7,0.42075]
[1728024987777,4.7345,2377.0,2376.9,0.42073]
[1728024988077,4.7345,2377.0,2376.5,0.4156]
[1728024988078,3.94,2377.2,2377.1,0.4207]
[1728024988479,0.8258,2377.3,2377.1,0.4207]
[1728024988778,0.8258,2377.3,2376.8,0.8039]
[1728024989368,0.8258,2377.3,2377.0,0.4207]
[1728024990172,0.8258,2377.3,2376.8,0.8039]
[1728024990372,0.8258,2377.3,2377.2,0.42068]
[1728024990572,0.8258,2377.3,2376.8,0.8039]
[1728024990573,0.8258,2377.3,2377.1,0.42068]
[1728024991470,0.8258,2377.3,2376.9,0.42073]
[1728024991674,0.8258,2377.3,2376.8,0.8039]
[1728024991875,0.8258,2377.3,2377.1,0.42068]
[1728024992171,0.8258,2377.3,2376.8,0.8039]
[1728024992484,0.8258,2377.3,2377.2,0.42068]
[1728024992675,0.8258,2377.3,2376.8,0.94662617]
[1728024992873,0.8258,2377.3,2377.2,0.42068]
[1728024993275,0.8258,2377.3,2377.1,0.4207]
[1728024993476,3.94,2377.2,2377.1,0.4207]
[1728024995273,3.2078,2377.5,2377.4,0.42064]
[1728024995672,3.2078,2377.5,2377.3,0.42065]
[1728024995878,3.2078,2377.5,2377.4,0.42064]
[1728024996874,3.2078,2377.5,2377.3,0.42065]
[1728024997079,0.4154,2377.4,2377.3,0.42065]
[1728025001480,4.3554,2377.4,2377.0,3.2078]
[1728025001786,0.3919,2377.3,2377.2,0.42066]
[1728025003583,2.2119,2377.3,2377.2,0.42066]
[1728025004189,2.2119,2377.3,2377.1,0.42068]
[1728025004390,1.82,2377.2,2377.1,0.42068]
[1728025005389,1.82,2377.2,2377.0,3.2078]
[1728025005587,0.387,2377.1,2377.0,3.6285]
[1728025006989,0.387,2377.1,2376.9,0.42072]
[1728025007290,1.82,2377.0,2376.9,0.42072]
[1728025008189,2.2221,2377.0,2376.9,0.42072]
[1728025008997,1.65170833,2377.4,2376.7,1.82]
[1728025009181,1.65170833,2377.4,2377.0,0.4207]
[1728025009182,2.2267,2377.2,2377.0,0.4207]
[1728025009387,2.2267,2377.2,2377.1,0.4207]
[1728025015991,2.2267,2377.2,2376.9,3.76448336]
[1728025015992,2.2267,2377.2,2377.0,0.4207]
[1728025016193,1.82,2377.1,2377.0,0.4207]
[1728025018096,1.82,2377.1,2376.7,0.7883]
[1728025018097,1.82,2377.1,2376.9,0.42072]
[1728025018992,0.4082,2377.0,2376.9,0.42072]
[1728025019795,2.2282,2377.0,2376.9,0.42072]
[1728025020406,0.4082,2377.0,2376.9,0.42072]
[1728025020596,1.82,2377.1,2377.0,0.42071]
[1728025024704,2.6262,2377.2,2377.1,0.4207]
[1728025026202,4.27790833,2377.2,2377.1,0.4207]
[1728025026705,4.27790833,2377.2,2376.7,7.22394944]
[1728025026898,4.27790833,2377.2,2376.9,0.42073]
[1728025027102,1.82,2377.1,2376.9,0.42073]
[1728025027724,1.82,2377.1,2376.7,5.40394944]
[1728025027725,1.82,2377.1,2377.0,0.42071]
[1728025030109,1.82,2377.1,2376.9,0.42072]
[1728025030528,3.47170833,2377.1,2376.9,0.42072]
[1728025033003,3.47170833,2377.1,2377.0,0.42071]
[1728025038302,3.47170833,2377.1,2376.9,0.84542]
[1728025038701,3.47170833,2377.1,2376.8,1.6544404]
[1728025038702,3.47170833,2377.1,2376.8,2.0751804]
[1728025039113,3.47170833,2377.1,2376.8,0.42074]
[1728025039508,3.47170833,2377.1,2376.7,2.4685004]
[1728025039509,1.65170833,2377.0,2376.7,2.4685004]
[1728025039817,2.2319,2376.9,2376.8,1.36438648]
[1728025040020,2.6601,2376.9,2376.6,2.0752204]
[1728025040215,2.6601,2376.9,2376.7,1.36442704]
[1728025040424,0.4049,2376.8,2376.6,2.0752204]
[1728025040618,0.4049,2376.8,2376.7,1.36434316]
[1728025041208,0.4049,2376.8,2376.7,1.78511316]
[1728025042510,0.4049,2376.8,2376.7,1.36434316]
[1728025042714,2.2249,2376.8,2376.7,1.36434316]
[1728025042923,2.2249,2376.8,2376.5,1.6544404]
[1728025043121,1.82,2376.6,2376.4,2.0752504]
[1728025043321,0.4198,2376.5,2376.4,2.0752504]
[1728025043524,0.8239,2376.5,2376.4,1.78532244]
[1728025044222,0.8239,2376.5,2376.4,3.43976284]
[1728025044518,0.8239,2376.5,2376.4,1.78532244]
[1728025044920,0.8239,2376.5,2376.4,1.78668482]
[1728025045218,0.8239,2376.5,2376.4,1.36587482]
[1728025045424,0.8239,2376.5,2376.3,3.62863]
[1728025045721,0.8239,2376.5,2376.4,0.42082]
[1728025046118,1.65170833,2376.7,2376.3,5.2783404]
[1728025046423,2.20246867,2376.8,2376.4,3.58020138]
[1728025046424,3.47170833,2376.8,2376.4,3.58020138]
[1728025046721,3.47170833,2376.8,2376.7,0.42077]
[1728025047816,3.47170833,2376.8,2376.3,5.2783404]
[1728025048017,3.47170833,2376.8,2376.2,2.0723404]
[1728025048018,1.82,2376.4,2376.2,2.0723404]
[1728025048227,0.42079,2376.6,2376.1,1.6544404]
[1728025048228,2.6372,2376.3,2376.1,1.6544404]
[1728025048517,3.0568,2376.3,2376.0,1.87898]
[1728025048717,3.0568,2376.3,2376.0,1.4581]
[1728025048927,3.0568,2376.3,2376.1,0.42086]
[1728025049619,1.2368,2376.3,2376.1,0.42086]
[1728025050357,0.8172,2376.3,2376.2,0.42086]
[1728025050716,0.8172,2376.3,2376.1,0.42086]
[1728025051622,0.8172,2376.3,2376.0,0.4101]
[1728025051814,1.6494182,2376.5,2376.2,1.82]
[1728025052016,0.8158,2376.6,2376.5,0.4208]
[1728025053121,0.8158,2376.6,2376.3,0.3942]
[1728025053431,1.82,2376.4,2376.2,0.397]
[1728025053731,0.42084,2376.3,2375.9,3.2078]
[1728025053930,3.94,2376.1,2375.9,3.2078]
[1728025054423,8.5526,2376.0,2375.6,3.2078]
[1728025054620,4.3438,2376.0,2375.6,3.2078]
[1728025054816,4.3438,2376.0,2375.6,3.62875]
[1728025055627,4.3438,2376.0,2375.7,0.42094]
[1728025056326,4.3438,2376.0,2375.6,3.62875]
[1728025056917,4.3438,2376.0,2375.7,0.42094]
[1728025057328,4.3438,2376.0,2375.6,3.62875]
[1728025057624,4.3438,2376.0,2375.6,3.2078]
[1728025057929,0.4038,2376.0,2375.8,0.42092]
[1728025058425,0.4038,2376.0,2375.9,0.4002]
[1728025059728,0.4038,2376.0,2375.9,0.82111]
[1728025060627,3.5976,2376.2,2375.9,0.82111]
[1728025060831,3.5976,2376.2,2376.0,0.42088]
[1728025061129,3.5976,2376.2,2375.9,0.4002]
[1728025061130,3.5976,2376.2,2375.9,0.8211]
[1728025061433,3.5976,2376.2,2375.9,0.4002]
[1728025061733,3.5976,2376.2,2376.0,0.42089]
[1728025062631,3.5976,2376.2,2376.1,0.42087]
[1728025066627,7.5376,2376.2,2376.0,0.4037]
[1728025066838,7.5376,2376.2,2376.0,0.42088]
[1728025067629,7.5376,2376.2,2375.9,0.4002]
[1728025067834,7.5376,2376.2,2376.1,0.42087]
[1728025068133,7.5376,2376.2,2375.9,0.4002]
[1728025068134,7.5376,2376.2,2375.6,3.2078]
[1728025068334,3.5976,2376.2,2376.0,0.42088]
[1728025068534,3.5976,2376.2,2376.1,0.42087]
[1728025068831,3.5976,2376.2,2375.8,0.4059]
[1728025069027,3.5976,2376.2,2376.0,0.42088]
[1728025069734,0.3898,2376.2,2375.8,0.4059]
[1728025069939,3.3058,2376.5,2376.3,0.42083]
[1728025070164,0.4034,2376.5,2376.3,0.42083]
[1728025070331,0.4034,2376.5,2376.4,0.805]
[1728025070527,0.4034,2376.5,2375.9,4.6539]
[1728025070741,0.4034,2376.5,2376.1,0.42087]
[1728025070929,3.6112,2376.5,2376.0,0.4059]
[1728025071130,3.94,2376.4,2376.0,0.82678]
[1728025071432,0.413,2376.3,2376.0,0.82678]
[1728025071637,0.3873,2376.2,2376.0,0.82678]
[1728025071835,0.7841,2376.2,2376.0,0.82678]
[1728025072037,0.7841,2376.2,2376.1,0.42087]
[1728025072638,0.7841,2376.2,2376.0,0.82678]
[1728025073541,0.7841,2376.2,2376.0,0.4059]
[1728025073738,0.7841,2376.2,2376.0,0.82678]
[1728025074238,0.7841,2376.2,2376.0,0.4059]
[1728025076936,0.7841,2376.2,2375.8,0.42091]
[1728025077138,0.7841,2376.2,2375.8,0.82871]
[1728025077337,0.7841,2376.2,2375.8,0.4078]
[1728025077533,0.7841,2376.2,2375.8,0.82872]
[1728025078241,0.7841,2376.2,2375.9,0.42091]
[1728025079639,0.7841,2376.2,2375.8,0.82872]
[1728025079942,4.7241,2376.2,2375.8,0.82872]
[1728025081137,4.7241,2376.2,2375.8,0.4078]
[1728025081448,4.7241,2376.2,2375.9,0.42091]
[1728025082837,4.7241,2376.2,2376.0,0.42089]
[1728025083043,4.7241,2376.2,2375.9,0.4209]
[1728025083537,0.7841,2376.2,2376.0,0.42089]
[1728025083738,1.82,2376.1,2376.0,0.42089]
[1728025087843,4.2535182,2376.2,2376.0,0.42089]
[1728025089451,2.4335182,2376.2,2376.1,0.42087]
[1728025090141,0.7841,2376.2,2376.1,0.42087]
[1728025090346,1.6494182,2376.4,2376.1,1.82]
[1728025090540,1.6494182,2376.4,2376.3,0.42084]
[1728025090746,1.6494182,2376.5,2376.3,0.42084]
[1728025091141,1.82,2376.4,2376.2,0.4017]
[1728025091344,1.82,2376.4,2376.1,1.52081681]
[1728025091544,1.82,2376.2,2376.1,1.09995681]
[1728025091743,1.82,2376.2,2376.0,1.51535681]
[1728025091937,2.2274,2376.1,2376.0,1.51535681]
[1728025092156,2.2274,2376.1,2376.0,0.4154]
[1728025092344,2.2274,2376.1,2376.0,0.83629]
[1728025092543,2.2274,2376.1,2376.0,1.93624681]
[1728025092544,0.4074,2376.1,2376.0,1.93624681]
[1728025093144,0.4074,2376.1,2376.0,1.51535681]
[1728025093356,0.4074,2376.1,2376.0,0.4154]
[1728025093749,0.4074,2376.1,2376.0,0.83629]
[1728025094453,2.0568182,2376.1,2375.9,1.52084681]
[1728025094749,0.4184,2376.0,2375.9,1.52084681]
[1728025094945,0.4184,2376.0,2375.9,2.88783309]
[1728025095347,0.4184,2376.0,2375.9,7.09663309]
[1728025096162,0.4184,2376.0,2375.9,5.72964681]
[1728025096350,0.4184,2376.0,2375.9,7.09668311]
[1728025097441,0.4184,2376.0,2375.9,2.88788311]
[1728025098455,0.4184,2376.0,2375.9,3.4423667]
[1728025100354,0.4184,2376.0,2375.9,3.44322321]
[1728025101050,0.4184,2376.0,2375.9,2.0753304]
[1728025101255,0.4184,2376.0,2375.9,3.44325063]
[1728025101447,2.0678182,2376.0,2375.9,3.44325063]
[1728025101755,1.6494182,2376.0,2375.9,3.44325063]
[1728025101955,1.6494182,2376.0,2375.9,3.02236063]
[1728025102845,1.6494182,2376.0,2375.9,1.36792023]
[1728025103048,1.6494182,2376.0,2375.9,3.02236063]
[1728025103246,1.6494182,2376.0,2375.9,2.47202238]
[1728025103454,1.6494182,2376.0,2375.9,1.36792023]
[1728025104454,1.6494182,2376.0,2375.9,3.44327063]
[1728025106453,1.6494182,2376.0,2375.9,3.02236063]
[1728025107561,2.60986867,2376.1,2375.9,1.10415734]
[1728025108254,2.60986867,2376.1,2375.9,1.52506734]
[1728025108451,2.60986867,2376.1,2375.9,1.10415734]
[1728025109158,2.60986867,2376.1,2375.9,1.52506734]
[1728025110653,1.65179106,2376.0,2375.9,1.52506734]
[1728025110860,1.65179106,2376.0,2375.9,2.89315168]
[1728025114268,1.65179106,2376.0,2375.9,2.47224168]
[1728025114465,1.65179106,2376.0,2375.9,1.36808434]
[1728025114762,1.65179106,2376.0,2375.9,2.47221102]
[1728025115758,1.65179106,2376.0,2375.9,2.47220597]
[1728025116556,1.65179106,2376.0,2375.9,1.36807929]
[1728025116965,1.65179106,2376.0,2375.9,3.02251969]
[1728025117155,1.65179106,2376.0,2375.9,3.44342969]
[1728025119162,1.65179106,2376.0,2375.9,3.02251969]
[1728025119366,6.44969,2376.0,2375.9,2.47237941]
[1728025119554,0.42093,2375.8,2375.7,1.10430012]
[1728025119757,5.832187,2375.8,2375.6,1.10430012]
[1728025119961,2.6322,2375.7,2375.6,1.10430012]
[1728025120164,4.835657,2375.7,2375.6,1.10430012]
[1728025120467,0.42099,2375.5,2375.3,1.6544404]
[1728025120662,5.0278,2375.4,2375.2,0.42103]
[1728025120861,3.47120729,2375.3,2375.2,0.42103]
[1728025121365,3.47120729,2375.3,2375.1,2.0754804]
[1728025121599,1.82,2375.3,2375.1,0.42104]
[1728025122266,3.47120729,2375.3,2375.1,0.42104]
[1728025122462,1.82,2375.3,2375.1,0.42104]
[1728025123574,1.82,2375.3,2375.0,0.42106]
[1728025123575,0.3906,2375.2,2375.0,0.42106]
[1728025123763,0.3906,2375.2,2374.9,0.97958696]
[1728025123958,1.82,2375.3,2374.9,0.97958696]
[1728025124165,7.45550729,2375.4,2375.2,0.42102]
[1728025124365,7.45550729,2375.4,2375.3,0.4148]
[1728025124563,2.5965,2375.4,2375.3,0.4148]
[1728025124789,0.3859,2375.4,2375.3,0.4148]
[1728025124964,0.3859,2375.4,2375.3,0.83582]
[1728025125186,1.65120729,2375.6,2375.5,0.42098]
[1728025125366,7.72384358,2375.7,2375.5,0.42098]
[1728025125367,6.67900729,2375.7,2375.5,0.42098]
[1728025125774,6.67900729,2375.7,2375.5,0.81188]
[1728025126172,4.85900729,2375.7,2375.5,0.3909]
[1728025126367,2.07760729,2375.8,2375.5,0.3909]
[1728025126570,0.4264,2375.8,2375.6,0.42095]
[1728025126765,0.4264,2375.8,2375.5,0.3909]
[1728025126975,0.4264,2375.8,2375.6,0.42096]
[1728025127474,1.82,2375.7,2375.6,0.42096]
[1728025127674,0.4264,2375.8,2375.6,0.42096]
[1728025129676,0.4264,2375.8,2375.7,0.42094]
[1728025129976,5.25150729,2376.1,2375.5,0.3909]
[1728025130279,5.25150729,2376.1,2375.9,0.4209]
[1728025130280,0.3927,2376.0,2375.9,0.4209]
[1728025131274,0.3927,2376.0,2375.9,0.42091]
[1728025131477,0.3927,2376.0,2375.6,3.2078]
[1728025131780,0.3927,2376.0,2375.7,0.84423]
[1728025133281,0.3927,2376.0,2375.7,0.84424]
[1728025137377,0.3927,2376.0,2375.8,0.42092]
[1728025140178,0.3927,2376.0,2375.7,0.8234]
[1728025140373,0.3927,2376.0,2375.8,0.42091]
[1728025145178,0.3927,2376.0,2375.8,0.42092]
[1728025145581,0.3927,2376.0,2375.8,0.42093]
[1728025145582,0.7924,2376.0,2375.8,0.42093]
[1728025145786,0.7924,2376.0,2375.9,0.42091]
[1728025147586,0.7924,2376.0,2375.8,0.42092]
[1728025147985,0.7924,2376.0,2375.9,0.42091]
[1728025148192,2.44360729,2376.0,2375.9,0.42091]
[1728025149493,4.26360729,2376.0,2375.9,0.42091]
[1728025150689,3.86390729,2376.0,2375.9,0.42091]
[1728025150994,0.3927,2376.0,2375.9,0.42091]
[1728025153187,0.3927,2376.0,2375.7,0.4233]
[1728025153488,0.3927,2376.0,2375.8,0.42093]
[1728025153992,0.3927,2376.0,2375.9,0.42091]
[1728025166511,2.04390729,2376.0,2375.9,0.42091]
[1728025169612,0.3927,2376.0,2375.7,2.0777404]
[1728025169810,1.65269091,2375.9,2375.8,1.36280975]
[1728025170218,6.41044358,2375.9,2375.7,0.4233]
[1728025170512,4.02164358,2375.8,2375.7,0.4233]
[1728025171417,2.20164358,2375.9,2375.7,2.21744262]
[1728025171617,2.20164358,2375.9,2375.7,2.4986804]
[1728025172510,2.20164358,2375.8,2375.7,2.4986804]
[1728025172803,2.20164358,2375.8,2375.7,3.87237004]
[1728025174910,2.20164358,2375.8,2375.7,1.79698964]
[1728025175813,2.20164358,2375.8,2375.7,2.21792964]
[1728025176016,2.20164358,2375.8,2375.7,1.79698964]
[1728025176618,2.20164358,2375.8,2375.7,2.21792964]
[1728025177414,2.20164358,2375.8,2375.7,0.84424]